[Event "27th OIBM 2024"]
[Site "Gmund am Tegernsee"]
[Date "2024.10.27"]
[Round "2.9"]
[White "Quparadze, Giga"]
[Black "Lindam, Ingo"]
[Result "1-0"]
[ECO "B40"]
[WhiteElo "2522"]
[BlackElo "2160"]
[Annotator "TA"]
[PlyCount "63"]
[EventDate "2024.09.16"]
[EventType "swiss"]
[EventCountry "GER"]
[SourceTitle "playchess.com"]
[Source "ChessBase"]
[SourceQuality "1"]
[TimeControl "40/5400+30:1800+30"]

{[%evp 9,63,0,18,13,18,12,66,77,87,84,73,54,83,82,114,59,65,50,87,62,66,74,60,64,60,48,69,39,41,4,11,7,106,111,107,106,98,105,108,116,113,115,115,120,268,210,233,216,305,314,310,280,255,255,730,720]} 1. e4 {[%emt 0:03:38]} c5 {[%emt 0:00:14]} 2. Nf3 {[%emt 0:00:06]} e6 {[%emt 0:00:16]} 3. g3 {[%emt 0:00:05]} d5 {[%emt 0:02:34]} 4. exd5 {[%emt 0:00:07]} exd5 {[%emt 0:00:29]} 5. Bg2 {[%emt 0:00:04]} Nc6 {[%emt 0:04:13]} 6. O-O {[%emt 0:00:06]} Bg4 {[%emt 0:01:13]} 7. h3 {[%emt 0:01:46]} Bh5 {[%emt 0:03:14]} (7... Be6 $11) 8. d4 $14 {[%emt 0:01:09] White is slightly better.} cxd4 {[%emt 0:19:51]} 9. g4 {[%emt 0:00:30][%cal Bg3g4,Bg4g5][%mdl 32]} Bg6 {[%emt 0:00:10]} 10. Nxd4 {[%emt 0:00:07][%cal Oc2c4]} Nf6 {[%emt 0:09:46] [#]} 11. c4 $1 {[%emt 0:00:06]} Be4 {[%emt 0:09:28]} (11... Bc5 12. Qe2+) 12. Nxc6 {[%emt 0:01:02]} (12. g5 $16 {Threatens to win with Nc3.} Bxg2 13. Kxg2) 12... bxc6 {[%emt 0:00:19]} 13. Qa4 {[%emt 0:00:04]} Qd7 {[%emt 0:04:06]} 14. g5 {[%emt 0:00:07]} Bxg2 {[%emt 0:04:25]} 15. Kxg2 {[%emt 0:00:08]} Ne4 {[%emt 0:04:10]} 16. cxd5 $1 {[%emt 0:00:06]} cxd5 {[%emt 0:00:54]} 17. Qxd7+ {[%emt 0:00:05]} Kxd7 {[%emt 0:00:13][%cal Be8d7,Bd7e6,Be6f5][%mdl 32]} 18. Rd1 {[%emt 0:00:04]} Rc8 {[%emt 0:07:24]} 19. Rxd5+ {[%emt 0:00:22]} Ke6 {[%emt 0:00:31]} 20. Rd1 {[%emt 0:00:04]} Rc2 {[%emt 0:07:39] [#]} (20... Bc5 $11) 21. Nd2 $1 $36 {[%emt 0:00:35][%mdl 2048] Keeping Black busy.} Nxd2 {[%emt 0:01:37]} (21... Nxg5 $2 {is the wrong capture.} 22. h4 $18) 22. Rxd2 {[%emt 0:00:06]} Rxd2 {[%emt 0:00:54]} 23. Bxd2 {[%emt 0:00:04][%mdl 4096] Endgame. KRB-KRB} Bc5 {[%emt 0:00:26]} 24. Re1+ {[%emt 0:00:16]} Kf5 {[%emt 0:02:00]} 25. Bc3 {[%emt 0:00:03]} f6 {[%emt 0:00:59] Against Re5+} 26. Rd1 {[%emt 0:00:06]} Kg6 {[%emt 0:02:18] This move loses the game for Black.} (26... Ke6 $16 {keeps fighting.} 27. gxf6 gxf6) 27. Rd5 {[%emt 0:00:20]} Rc8 {[%emt 0:00:30]} 28. h4 {[%emt 0:00:05]} h5 {[%emt 0:01:41]} (28... h6 {was called for.} 29. gxf6 gxf6 30. h5+ Kf7 31. Rd7+ Ke6) 29. f4 $18 {[%emt 0:00:22][%cal Bf2f4,Bf4f5][%mdl 32]} Kf7 {[%emt 0:11:58]} 30. Rd7+ {[%emt 0:00:28]} Kg6 {[%emt 0:00:20]} 31. Kf3 {[%emt 0:00:29]} Re8 $2 {[%emt 0:00:31] [#]} (31... Bb6 32. Rd5 f5 33. Rd6+ Kf7 34. Rd7+ Ke6 35. Rxg7 Rd8 36. Rg6+ Kf7 37. Rf6+ Kg8 38. Rxf5 Rd6) 32. f5+ $1 {[%emt 0:00:07][%mdl 512] Weighted Error Value: White=0.09 (flawless) /Black=0.28 (precise) .  Mistake:       	White=1     	Black=5      Inaccurate:     	White=2     	Black=3      OK:         	White=12    	Black=10     Best:        	---       	Black=3      Strong:       	White=2     	---        Brilliant:      	White=1     	---} 1-0

[Event "27th OIBM 2024"]
[Site "Gmund am Tegernsee"]
[Date "2024.10.27"]
[Round "2.10"]
[White "Latzke, Boris"]
[Black "Heberla, Bartlomiej"]
[Result "1/2-1/2"]
[ECO "D35"]
[WhiteElo "2166"]
[BlackElo "2501"]
[Annotator "RC"]
[PlyCount "157"]
[EventDate "2024.09.16"]
[EventType "swiss"]
[EventCountry "GER"]
[SourceTitle "playchess.com"]
[Source "ChessBase"]
[SourceQuality "1"]
[TimeControl "40/5400+30:1800+30"]

1. d4 {[%emt 0:00:02]} Nf6 {[%emt 0:00:18]} 2. c4 {[%emt 0:00:08]} e6 {[%emt 0:00:18]} 3. Nf3 {[%emt 0:00:13]} d5 {[%emt 0:00:08]} 4. Nc3 {[%emt 0:01:29]} Nbd7 {[%emt 0:00:30]} 5. cxd5 {[%emt 0:00:58]} exd5 {[%emt 0:00:05]} 6. Bg5 {[%emt 0:00:19]} c6 {[%emt 0:00:09]} 7. e3 {[%emt 0:00:20]} Be7 {[%emt 0:00:05]} 8. Bd3 {[%emt 0:00:51]} Ne4 {[%emt 0:01:22]} 9. Bxe7 {[%emt 0:02:25]} Qxe7 {[%emt 0:00:07]} 10. Bxe4 {[%emt 0:00:28]} dxe4 {[%emt 0:00:08]} 11. Nd2 {[%emt 0:00:09]} Nf6 {[%emt 0:01:10]} 12. O-O {[%emt 0:02:45]} Bf5 {[%emt 0:02:55]} 13. Nc4 {[%emt 0:06:32]} O-O {[%emt 0:00:28]} 14. Qe2 {[%emt 0:05:01]} Rad8 {[%emt 0:05:23]} 15. h3 {[%emt 0:06:16]} Rfe8 {[%emt 0:06:15]} 16. Rfd1 {[%emt 0:08:59]} Nd5 {[%emt 0:00:09]} 17. a3 {[%emt 0:08:26]} Qg5 {[%emt 0:09:01]} 18. Kh2 {[%emt 0:19:14]} Re6 {[%emt 0:00:36]} 19. Rac1 {[%emt 0:05:13]} h5 {[%emt 0:22:56]} 20. Rd2 {[%emt 0:06:25]} h4 {[%emt 0:01:43]} 21. Rdc2 {[%emt 0:01:32]} Qe7 {[%emt 0:14:19]} 22. Nxd5 {[%emt 0:03:15]} Rxd5 {[%emt 0:00:06]} 23. Nd2 {[%emt 0:02:26]} g5 {[%emt 0:04:57]} 24. Rc5 {[%emt 0:01:13]} Rg6 {[%emt 0:00:31]} 25. Rxd5 {[%emt 0:06:20]} cxd5 {[%emt 0:00:03]} 26. f3 {[%emt 0:04:02]} exf3 {[%emt 0:07:22]} 27. Qxf3 {[%emt 0:00:17]} Be6 {[%emt 0:07:14]} 28. e4 {[%emt 0:05:18]} dxe4 {[%emt 0:01:28]} 29. Qxe4 {[%emt 0:00:26]} Qd6+ {[%emt 0:02:16]} 30. Qe5 {[%emt 0:00:49]} Qxe5+ {[%emt 0:02:34]} 31. dxe5 {[%emt 0:00:06]} Bd5 {[%emt 0:00:03]} 32. Nf1 {[%emt 0:02:28]} Re6 {[%emt 0:05:55]} 33. Ne3 {[%emt 0:00:39]} Rxe5 {[%emt 0:03:16]} 34. Ng4 {[%emt 0:00:09]} Re6 {[%emt 0:00:27]} 35. Rc5 {[%emt 0:00:20]} Bc6 {[%emt 0:00:11]} 36. Rxg5+ {[%emt 0:00:20]} Kf8 {[%emt 0:00:07]} 37. Rf5 {[%emt 0:01:07]} Re2 {[%emt 0:01:00]} 38. Rf2 {[%emt 0:00:09]} Re1 {[%emt 0:00:12]} 39. Nh6 {[%emt 0:00:39]} Bd5 {[%emt 0:00:16]} 40. Nf5 {[%emt 0:00:32]} a5 {[%emt 0:03:52]} 41. Rd2 {[%emt 0:31:07]} Re5 {[%emt 0:30:09]} 42. Nxh4 {[%emt 0:00:39]} Ke7 {[%emt 0:00:17]} 43. Nf3 {[%emt 0:00:00]} Bxf3 {[%emt 0:00:00]} 44. gxf3 {[%emt 0:00:00]} Rb5 {[%emt 0:00:00]} 45. Kg3 {[%emt 0:00:00]} Kf6 {[%emt 0:00:00]} 46. h4 {[%emt 0:00:00]} Kg6 {[%emt 0:00:00]} 47. Kg4 {[%emt 0:00:00]} f6 {[%emt 0:00:00]} 48. Rh2 {[%emt 0:00:00]} Kh6 {[%emt 0:00:00]} 49. Kf4 {[%emt 0:00:00]} Kh5 {[%emt 0:00:00]} 50. Ke4 {[%emt 0:00:00]} Re5+ {[%emt 0:00:00]} 51. Kd4 {[%emt 0:00:00]} Rf5 {[%emt 0:00:00]} 52. Ke4 {[%emt 0:00:00]} Re5+ {[%emt 0:00:00]} 53. Kf4 {[%emt 0:00:00]} Rb5 {[%emt 0:00:00]} 54. Re2 {[%emt 0:00:00]} Kg6 {[%emt 0:00:00]} 55. Kg4 {[%emt 0:00:00]} a4 {[%emt 0:00:00]} 56. Rd2 {[%emt 0:00:00]} b6 {[%emt 0:00:00]} 57. Kf4 {[%emt 0:00:00]} Rf5+ {[%emt 0:00:00]} 58. Ke4 {[%emt 0:00:00]} Re5+ {[%emt 0:00:00]} 59. Kf4 {[%emt 0:01:35]} Rf5+ {[%emt 0:00:00]} 60. Kg4 {[%emt 0:00:14]} Rb5 {[%emt 0:00:00]} 61. Rd4 {[%emt 0:00:56]} Rxb2 {[%emt 0:00:00]} 62. Rxa4 {[%emt 0:00:07]} Rg2+ {[%emt 0:00:00]} 63. Kf4 {[%emt 0:01:08]} Rh2 {[%emt 0:00:00]} 64. Kg3 {[%emt 0:00:12]} Ra2 {[%emt 0:00:00]} 65. Ra6 {[%emt 0:01:31]} Kf5 {[%emt 0:00:00]} 66. Rxb6 {[%emt 0:01:26]} Rxa3 {[%emt 0:00:00]} 67. Rb5+ {[%emt 0:00:41]} Kg6 {[%emt 0:00:00]} 68. Kg4 {[%emt 0:00:27]} Ra1 {[%emt 0:05:05]} 69. h5+ {[%emt 0:00:21]} Kh6 {[%emt 0:00:03]} 70. Rb6 {[%emt 0:01:20]} Rg1+ {[%emt 0:05:21]} 71. Kf5 {[%emt 0:00:40]} Kxh5 {[%emt 0:00:21]} 72. f4 {[%emt 0:00:45]} Kh6 {[%emt 0:00:42]} 73. Rxf6+ {[%emt 0:00:58]} Kg7 {[%emt 0:00:05]} 74. Ra6 {[%emt 0:00:23]} Rf1 {[%emt 0:01:01]} 75. Ra7+ {[%emt 0:00:30]} Kf8 {[%emt 0:01:50]} 76. Kg5 {[%emt 0:00:38]} Rb1 {[%emt 0:00:27]} 77. f5 {[%emt 0:00:42]} Rb6 {[%emt 0:00:07]} 78. Rc7 {[%emt 0:00:25]} Ra6 {[%emt 0:00:05]} 79. Rb7 {[%emt 0:00:17]} 1/2-1/2

[Event "27th OIBM 2024"]
[Site "Gmund am Tegernsee"]
[Date "2024.10.27"]
[Round "2.11"]
[White "Cordes, Hans-Joerg"]
[Black "Deuer, Marius"]
[Result "0-1"]
[ECO "D05"]
[WhiteElo "2161"]
[BlackElo "2477"]
[Annotator "TA"]
[PlyCount "74"]
[EventDate "2024.09.16"]
[EventType "swiss"]
[EventCountry "GER"]
[SourceTitle "playchess.com"]
[Source "ChessBase"]
[SourceQuality "1"]
[TimeControl "40/5400+30:1800+30"]

{[%evp 10,74,4,-6,0,-12,0,-2,-12,-18,-11,-17,-24,-26,0,0,0,0,0,0,0,-8,-1,-3,17,0,0,0,0,0,0,0,0,0,0,0,0,-27,0,-39,-34,-24,-35,-104,-88,-120,-120,-109,-87,-183,-178,-205,-210,-211,-123,-189,-59,-63,-8,-11,-9,-582,-557,-943,-852,-29994,-29995]} 1. d4 {[%emt 0:00:06]} Nf6 {[%emt 0:00:05]} 2. Nf3 {[%emt 0:00:10]} e6 {[%emt 0:00:09]} 3. e3 {[%emt 0:00:26]} b6 {[%emt 0:00:27]} 4. Bd3 {[%emt 0:00:27]} Bb7 {[%emt 0:00:49]} 5. O-O {[%emt 0:00:48]} d5 {[%emt 0:02:37]} 6. Ne5 {[%emt 0:02:41]} Bd6 {[%emt 0:10:37]} 7. f4 {[%emt 0:00:27]} Ne4 {[%emt 0:12:29]} 8. Nd2 {[%emt 0:09:23]} O-O {[%emt 0:03:43] The position is equal.} 9. Nxe4 {[%emt 0:08:30]} dxe4 {[%emt 0:00:11]} 10. Be2 {[%emt 0:01:32]} c5 {[%emt 0:07:36]} 11. b3 {[%emt 0:01:40]} f6 {[%emt 0:04:40]} 12. Nc4 {[%emt 0:07:28]} Be7 {[%emt 0:00:10]} 13. dxc5 {[%emt 0:18:20]} Bxc5 {[%emt 0:04:43]} 14. Qxd8 {[%emt 0:00:09]} Rxd8 {[%emt 0:00:04]} 15. Ba3 {[%emt 0:00:07]} Bxa3 {[%emt 0:06:17]} 16. Nxa3 {[%emt 0:00:10]} Ba6 {[%emt 0:00:07]} 17. Nb5 {[%emt 0:12:51]} Nc6 {[%emt 0:11:49][%cal Bb8c6,Bc6b4,Bb4d5,Bd5c3][%mdl 32]} (17... Rd2 $2 18. Rfd1 Rxe2 19. Nc7 $18) 18. Rf2 {[%emt 0:12:37]} Bxb5 {[%emt 0:04:20]} 19. Bxb5 {[%emt 0:00:07]} Nb4 {[%emt 0:00:03]} 20. Bc4 {[%emt 0:02:15]} Nd5 {[%emt 0:00:11]} 21. Rd1 {[%emt 0:01:25]} Nc3 $36 {[%emt 0:08:21][%mdl 2048] White is under pressure.} 22. Bxe6+ {[%emt 0:08:00]} Kf8 {[%emt 0:00:04]} 23. Rd4 {[%emt 0:04:26]} Ke7 {[%emt 0:03:59]} 24. f5 {[%emt 0:00:07]} Rxd4 {[%emt 0:02:00]} 25. exd4 $15 {[%emt 0:00:06][%mdl 4096] Endgame. KRB-KRN} Rd8 {[%emt 0:00:03]} (25... Nxa2 26. Re2 $16) 26. d5 {[%emt 0:04:29]} Kd6 $1 $17 {[%emt 0:01:39][%cal Od6e5] Black has more active pieces.} (26... Nxd5 27. Bxd5 Rxd5 28. Rf4 $15) (26... Nxa2 $6 27. Re2 $11) 27. Rd2 {[%emt 0:01:37] [#]} Ke5 $1 {[%emt 0:01:46]} (27... Nxa2 28. Rd4 Ke5 29. Rc4 $15 (29. Ra4 Nc3 $11)) 28. Kf2 {[%emt 0:01:08]} g6 {[%emt 0:00:40]} 29. fxg6 {[%emt 0:01:12]} (29. g4 $17 {is a better defense.}) 29... hxg6 $19 {[%emt 0:00:05]} 30. g3 {[%emt 0:00:37]} g5 {[%emt 0:04:23][%cal Of6f5][%mdl 1024] Black has strong compensation.} (30... Nxd5 31. Rxd5+ Rxd5 32. Bxd5 Kxd5 33. Ke3 $15) 31. g4 {[%emt 0:01:25]} Rh8 {[%emt 0:03:17]} (31... Nxd5 32. Rxd5+ Rxd5 33. Bxd5 Kxd5 34. Ke3 $16) (31... Nxa2 $19 {...Nc3 is the strong threat.} 32. Ke1 Nc3) 32. Kg3 {[%emt 0:00:02]} (32. Kf1 $17 {was called for.}) 32... e3 {[%emt 0:01:56]} (32... Nxa2 $19 {Hoping for ...Nc3.} 33. Bf7 f5 (33... Nc3 34. d6 $15) 34. gxf5 Nc3) 33. Rd3 $15 {[%emt 0:00:05][%csl LRc3,LRe3]} Ne4+ {[%emt 0:00:03]} ({Black should try} 33... Ne2+ $15 34. Kf3 Nd4+ (34... Rxh2 $2 {perishes.} 35. Rxe3+ Kd6 36. Rxe2 $18) 35. Kxe3 Rh3+ (35... Nxe6 36. dxe6 Kxe6 37. Rd2 $11) (35... Nxc2+ 36. Kf2 $11) (35... Rxh2 36. Rd1 $15) 36. Kd2 Rxh2+ 37. Kd1 Nxe6 (37... Nxc2 38. d6 $11) (37... Rxc2 $2 38. Rxd4 Rc3 39. Rd2 $18) 38. dxe6 Kxe6) 34. Kg2 $11 {[%emt 0:01:33]} Kf4 {[%emt 0:00:05][%cal Oh8h2]} 35. d6 $2 {[%emt 0:00:08][%mdl 8192] [#]} (35. Bf5 $1 $11 {and White stays safe.} Nd6 36. Rd4+ Ke5 37. Rd3) 35... Nc5 $1 $19 {[%emt 0:01:39][%csl LRd3,LRe6]} 36. Bf5 {[%emt 0:01:04]} Nxd3 {[%emt 0:00:10]} 37. cxd3 {[%emt 0:00:09]} e2 {[%emt 0:00:11] Weighted Error Value: White=0.56/Black=0.16 (very precise) .  Loses game:     	White=1     	---        Mistake:       	White=3     	Black=3      Inaccurate:     	White=5     	Black=2      OK:         	White=4     	Black=12     Best:        	White=3     	---        Strong:       	---       	Black=3} 0-1

[Event "27th OIBM 2024"]
[Site "Gmund am Tegernsee"]
[Date "2024.10.27"]
[Round "2.12"]
[White "Costa, Leonardo"]
[Black "Lederle, Vitus"]
[Result "1-0"]
[ECO "B45"]
[WhiteElo "2472"]
[BlackElo "2157"]
[Annotator "TA"]
[PlyCount "87"]
[EventDate "2024.09.16"]
[EventType "swiss"]
[EventCountry "GER"]
[SourceTitle "playchess.com"]
[Source "ChessBase"]
[SourceQuality "1"]
[TimeControl "40/5400+30:1800+30"]

{[%evp 12,87,37,32,22,49,24,33,23,22,58,24,40,29,35,43,37,31,45,42,42,23,67,44,53,56,80,78,60,63,70,66,71,61,81,61,61,61,61,68,75,77,105,93,105,105,105,105,105,105,100,95,164,177,183,180,202,171,206,113,231,66,192,171,170,156,361,358,337,318,428,408,445,380,377,365,533,522]} 1. e4 {[%emt 0:00:01]} c5 {[%emt 0:00:08]} 2. Nf3 {[%emt 0:00:04]} e6 {[%emt 0:00:19]} 3. d4 {[%emt 0:00:04]} cxd4 {[%emt 0:00:05]} 4. Nxd4 {[%emt 0:00:03]} Nf6 {[%emt 0:00:39]} 5. Nc3 {[%emt 0:00:04]} Nc6 {[%emt 0:00:08]} 6. Ndb5 {[%emt 0:00:03]} Bc5 {[%emt 0:01:19]} 7. Bf4 {[%emt 0:00:04] [#] Hoping for Nc7+.} (7. Nd6+ {feels hotter.} Ke7 8. Bf4 e5 9. Nf5+) 7... O-O {[%emt 0:01:01]} 8. Bc7 {[%emt 0:00:04]} Qe7 {[%emt 0:00:08] ...d5 is the strong threat.} 9. Bd6 {[%emt 0:00:03]} Bxd6 {[%emt 0:00:10] White is slightly better.} 10. Qxd6 {[%emt 0:00:04]} Ne8 {[%emt 0:00:44]} 11. Qxe7 {[%emt 0:00:05]} Nxe7 {[%emt 0:00:06][%cal Bc6e7,Be7f5,Bf5h4,Bh4f3][%mdl 32]} 12. O-O-O {[%emt 0:00:04]} f5 {[%emt 0:00:13]} 13. Nd6 {[%emt 0:00:06]} Nxd6 {[%emt 0:00:24]} 14. Rxd6 {[%emt 0:00:03]} fxe4 {[%emt 0:00:13]} 15. Nxe4 {[%emt 0:00:04]} Nf5 {[%emt 0:00:12]} 16. Rd2 {[%emt 0:00:03]} d5 {[%emt 0:01:31]} 17. Ng5 {[%emt 0:00:04]} Nh4 {[%emt 0:01:43]} 18. g3 {[%emt 0:00:03]} Nf3 {[%emt 0:00:06]} 19. Nxf3 {[%emt 0:00:03]} Rxf3 {[%emt 0:00:08]} 20. Bg2 {[%emt 0:00:02]} Rf7 {[%emt 0:01:24]} 21. f4 {[%emt 0:04:48]} g6 {[%emt 0:03:32]} 22. h4 {[%emt 0:06:53]} h5 {[%emt 0:02:28]} 23. Re1 {[%emt 0:00:58]} Rc7 {[%emt 0:05:16]} 24. Bf1 {[%emt 0:19:57]} Bd7 {[%emt 0:05:08]} 25. Re5 {[%emt 0:04:17]} Rf8 {[%emt 0:12:43]} 26. Bd3 {[%emt 0:01:17]} Rf6 {[%emt 0:00:14]} 27. Rg2 {[%emt 0:03:52]} Be8 {[%emt 0:13:10]} 28. Kd2 {[%emt 0:02:02]} a6 {[%emt 0:04:25]} 29. Rge2 {[%emt 0:07:06]} Kf7 {[%emt 0:03:57]} 30. R2e3 {[%emt 0:00:16]} Bc6 {[%emt 0:04:50]} 31. Bf1 {[%emt 0:11:37] White is much more active.} Bd7 {[%emt 0:03:36] [#]} (31... d4 $16 32. Re1 Bf3) 32. Rc3 $1 $18 {[%emt 0:01:38]} Rxc3 {[%emt 0:00:37]} 33. Kxc3 {[%emt 0:00:04][%mdl 4096] Endgame. KRB-KRB} Ke7 {[%emt 0:01:09]} 34. Kd4 {[%emt 0:01:14]} Kd6 {[%emt 0:00:24]} 35. Bd3 {[%emt 0:00:45]} (35. Rg5 $18) 35... Bc6 {[%emt 0:11:27]} (35... Bb5 $16) 36. b4 $2 {[%emt 0:03:54]} ({Better is} 36. Rg5 $18 Be8 37. b3) 36... Bd7 {[%emt 0:05:06]} (36... Bb5 $14) 37. Rg5 {[%emt 0:02:06]} Be8 {[%emt 0:00:19]} 38. a4 {[%emt 0:07:01][%cal Ba2a4,Ba4a5][%mdl 32] a5 would now be deadly.} Bf7 $2 {[%emt 0:03:30] Loses the game.} (38... b6 $16 {is a better defense.} 39. c3 (39. Bxa6 Bxa4 40. Bd3 Be8 $16) 39... Bxa4 40. Bxg6 (40. Rxg6 Rxg6 41. Bxg6 Bd1 $11) 40... Rf8 41. Bxh5 (41. Rxh5 Be8 $18) 41... Bb5) 39. a5 {[%emt 0:02:15]} Be8 {[%emt 0:00:37]} 40. c3 {[%emt 0:05:45]} Bf7 {[%emt 0:00:28]} 41. c4 {[%emt 0:30:05]} dxc4 {[%emt 0:30:35]} 42. Bxc4 {[%emt 0:00:06]} Be8 {[%emt 0:00:00]} 43. Bd3 {[%emt 0:00:00]} Ke7 {[%emt 0:00:00]} (43... Rf8 $142 44. Bxg6 Bxg6) 44. Be4 {[%emt 0:00:00] Weighted Error Value: White=0.15 (very precise) /Black=0.30.  Loses game:     	---       	Black=1      Missed win:     	White=1     	---        Mistake:       	White=1     	Black=4      Inaccurate:     	---       	Black=3      OK:         	White=17    	Black=15} 1-0

[Event "27th OIBM 2024"]
[Site "Gmund am Tegernsee"]
[Date "2024.10.27"]
[Round "2.13"]
[White "Kull, Florian"]
[Black "Schneider, Ilja"]
[Result "0-1"]
[ECO "A05"]
[WhiteElo "2144"]
[BlackElo "2449"]
[Annotator "TA"]
[PlyCount "76"]
[EventDate "2024.09.16"]
[EventType "swiss"]
[EventCountry "GER"]
[SourceTitle "playchess.com"]
[Source "ChessBase"]
[SourceQuality "1"]
[TimeControl "40/5400+30:1800+30"]

{[%evp 9,76,6,26,13,22,19,23,19,54,45,68,13,13,0,3,0,0,0,-20,-8,8,0,0,0,0,-34,0,-48,-31,-52,-25,-15,-12,-13,-17,-12,-25,-26,-28,-14,-7,-42,-26,-28,-27,-20,-38,-48,187,175,172,-168,-173,-183,-193,-170,-175,-225,-217,-283,-277,-299,-289,-293,-278,-287,-251,-518,-502]} 1. Nf3 {[%emt 0:00:08]} Nf6 {[%emt 0:00:53]} 2. g3 {[%emt 0:00:15]} b5 {[%emt 0:02:15]} 3. Bg2 {[%emt 0:01:45]} Bb7 {[%emt 0:00:11]} 4. O-O {[%emt 0:00:10]} e6 {[%emt 0:00:29]} 5. b3 {[%emt 0:00:09]} c5 {[%emt 0:03:05]} 6. c4 {[%emt 0:03:06]} bxc4 {[%emt 0:03:56]} 7. bxc4 {[%emt 0:00:52]} Be7 {[%emt 0:00:56]} 8. Nc3 {[%emt 0:00:19][%cal Bb1c3,Bc3b5,Bb5d4][%mdl 32] White has an edge.} Nc6 {[%emt 0:02:33]} 9. Rb1 {[%emt 0:00:23]} Rb8 {[%emt 0:00:13]} 10. d3 {[%emt 0:02:02]} ({White should try} 10. d4 $1 $14 cxd4 11. Nxd4) 10... O-O $11 {[%emt 0:01:04]} 11. Bb2 {[%emt 0:00:15]} (11. Bf4 $5 d6 $8 12. Qa4 $14) 11... Nd4 {[%emt 0:14:29]} 12. Nxd4 {[%emt 0:12:33]} cxd4 {[%emt 0:00:12]} 13. Nb5 {[%emt 0:00:11][%csl LRa7,LRd4]} Bxg2 {[%emt 0:03:36]} 14. Kxg2 {[%emt 0:01:16]} Bc5 {[%emt 0:00:05] [#]} 15. e3 $1 {[%emt 0:22:00]} dxe3 {[%emt 0:02:39]} 16. fxe3 {[%emt 0:00:10]} a6 {[%emt 0:02:28]} (16... Bxe3 17. Rxf6 gxf6 18. Qf3 $18) 17. Nd4 {[%emt 0:03:59]} Qa5 {[%emt 0:08:37]} 18. a4 {[%emt 0:11:15]} (18. Rf2 $11) 18... Be7 $15 {[%emt 0:02:49]} 19. h3 {[%emt 0:04:06]} Rb6 {[%emt 0:06:30]} 20. Bc3 {[%emt 0:02:02]} Qc5 {[%emt 0:04:41]} 21. Rxb6 {[%emt 0:02:34]} Qxb6 {[%emt 0:00:03]} 22. Rf2 {[%emt 0:00:11][%cal Bf1f2,Bf2b2,Bb2b8][%mdl 32]} d5 {[%emt 0:03:11]} 23. Rb2 {[%emt 0:02:38]} Qc7 {[%emt 0:00:05]} 24. Qb3 {[%emt 0:00:38]} Rc8 {[%emt 0:00:12]} (24... dxc4 {simplifies} 25. Qxc4 Qxc4 26. dxc4 Rc8) 25. Qb7 {[%emt 0:02:01] And now Qxc7 would win.} (25. cxd5 $5 Nxd5 (25... Qxc3 26. Rc2 $16) 26. Bd2 $11) 25... dxc4 {[%emt 0:00:37]} 26. Qxc7 {[%emt 0:01:50]} Rxc7 {[%emt 0:00:12]} 27. Rb8+ {[%emt 0:00:07]} Bf8 {[%emt 0:00:04]} 28. Ba5 $1 {[%emt 0:00:24]} Rc5 {[%emt 0:01:42]} (28... cxd3 $1 $15 29. Bxc7 d2) 29. Bb4 $18 {[%emt 0:08:10]} Nd7 {[%emt 0:00:05] [#]} 30. Bxc5 $4 {[%emt 0:00:31][%mdl 8192]} (30. Rd8 $1 $18 {[%cal Rd8d7] is the narrow road to win.} Rc7 31. dxc4) 30... Nxb8 $19 {[%emt 0:00:03]} 31. Bxf8 {[%emt 0:00:07]} Kxf8 {[%emt 0:00:02]} 32. dxc4 $18 {[%emt 0:00:08][%mdl 4096] Endgame. KN-KN} Ke7 {[%emt 0:00:18]} 33. Kf3 {[%emt 0:00:22]} (33. c5 $142) 33... Kd6 $19 {[%emt 0:00:21]} 34. Nb3 {[%emt 0:00:34]} Nd7 {[%emt 0:00:12]} 35. a5 {[%emt 0:04:38]} Ne5+ {[%emt 0:00:09]} 36. Ke4 {[%emt 0:00:25]} Nxc4 {[%emt 0:00:11]} 37. Kd4 {[%emt 0:00:05]} Ne5 {[%emt 0:00:10]} 38. Nc5 $2 {[%emt 0:00:25]} (38. h4) 38... Nc6+ {[%emt 0:00:06] Weighted Error Value: White=0.39/Black=0.15 (very precise) .  Loses game:     	---       	Black=1      Missed win:     	White=1     	---        Mistake:       	White=4     	---        Inaccurate:     	White=3     	Black=2      OK:         	White=8     	Black=14     Best:        	White=3     	Black=4      Strong:       	White=1     	---} 0-1